[Event "14th Poti Open-A 2019"]
[Site "Poti"]
[Date "2019.07.20"]
[Round "9.26"]
[White "Vahramyan, Grisha"]
[Black "Gegia, Davit"]
[Result "1/2-1/2"]
[ECO "C55"]
[WhiteElo "1335"]
[BlackElo "1386"]
[Annotator "NA"]
[PlyCount "137"]
[EventDate "2019.07.13"]
[EventType "swiss"]
[EventCountry "GEO"]
[SourceTitle "playchess.com"]
[Source "ChessBase"]
[SourceQuality "1"]
[TimeControl "40/5400+30:1800+30"]

1. e4 {[%emt 0:00:00]} e5 {[%emt 0:00:00]} 2. Bc4 {[%emt 0:00:00]} Nf6 {[%emt 0:00:00]} 3. d3 {[%emt 0:00:00]} Nc6 {[%emt 0:00:01]} 4. Nf3 {[%emt 0:00:00]} Be7 {[%emt 0:00:37]} 5. Nc3 {[%emt 0:00:14]} O-O {[%emt 0:00:15]} 6. O-O {[%emt 0:00:39]} d6 {[%emt 0:00:26]} 7. h3 {[%emt 0:01:11]} Na5 {[%emt 0:00:51]} 8. Bb3 {[%emt 0:00:42]} Nd7 {[%emt 0:03:57]} 9. d4 {[%emt 0:07:15]} Nxb3 {[%emt 0:01:48]} 10. axb3 {[%emt 0:00:10]} exd4 {[%emt 0:00:05]} 11. Nxd4 {[%emt 0:01:24]} Nc5 {[%emt 0:01:30]} 12. b4 {[%emt 0:09:31]} Ne6 {[%emt 0:00:40]} 13. Nf5 {[%emt 0:00:24]} Bf6 {[%emt 0:05:48]} 14. f4 {[%emt 0:11:18]} Re8 {[%emt 0:10:05]} 15. g4 {[%emt 0:08:45]} Nf8 {[%emt 0:02:44]} 16. Ng3 {[%emt 0:00:15]} Bd7 {[%emt 0:03:39]} 17. Qd3 {[%emt 0:07:38]} a6 {[%emt 0:06:19]} 18. Be3 {[%emt 0:00:31]} Bh4 {[%emt 0:03:26]} 19. Nge2 {[%emt 0:11:46]} Bf6 {[%emt 0:03:54]} 20. Kh2 {[%emt 0:00:09]} Bc6 {[%emt 0:01:14]} 21. Bd4 {[%emt 0:01:52]} Ne6 {[%emt 0:06:29]} 22. Bxf6 {[%emt 0:01:44]} Qxf6 {[%emt 0:02:22]} 23. g5 {[%emt 0:00:03]} Qe7 {[%emt 0:02:02]} 24. Ng3 {[%emt 0:01:47]} Rad8 {[%emt 0:03:49]} 25. Rae1 {[%emt 0:00:31]} Qd7 {[%emt 0:06:10]} 26. Rd1 {[%emt 0:02:57]} Nf8 {[%emt 0:03:06]} 27. Nf5 {[%emt 0:05:21]} Ne6 {[%emt 0:06:25]} 28. h4 {[%emt 0:00:40]} b5 {[%emt 0:01:47]} 29. Kg3 {[%emt 0:00:24]} a5 {[%emt 0:00:55]} 30. bxa5 {[%emt 0:04:00]} Nc5 {[%emt 0:00:05]} 31. Qd4 {[%emt 0:01:27]} Nxe4+ {[%emt 0:00:12]} 32. Nxe4 {[%emt 0:03:35]} Qxf5 {[%emt 0:00:05]} 33. Nc3 {[%emt 0:05:50]} b4 {[%emt 0:00:16]} 34. Nd5 {[%emt 0:01:12]} Bxd5 {[%emt 0:07:32]} 35. Qxd5 {[%emt 0:00:01]} Re3+ {[%emt 0:00:08]} 36. Rf3 {[%emt 0:00:32]} Rxf3+ {[%emt 0:00:06]} 37. Qxf3 {[%emt 0:01:07]} Qxc2 {[%emt 0:00:07]} 38. b3 {[%emt 0:02:23]} Qa2 39. Qd5 c6 {[%emt 0:01:51]} 40. Qf3 {[%emt 0:03:38]} d5 {[%emt 0:01:37]} 41. Rc1 {[%emt 0:30:01]} Qxa5 {[%emt 0:30:41]} 42. Rxc6 {[%emt 0:00:01]} Qb5 {[%emt 0:00:24]} 43. Rc7 {[%emt 0:00:37]} d4 {[%emt 0:00:51]} 44. Qe4 {[%emt 0:01:07]} g6 {[%emt 0:02:06]} 45. Qe7 {[%emt 0:00:35]} Qd5 {[%emt 0:00:05]} 46. Qxb4 {[%emt 0:03:28]} d3 {[%emt 0:00:06]} 47. Rc1 {[%emt 0:04:07]} Qe6 {[%emt 0:00:15]} 48. Re1 {[%emt 0:01:58]} Qd5 {[%emt 0:00:50]} 49. Qc3 {[%emt 0:00:28]} Qb5 {[%emt 0:02:16]} 50. Rd1 {[%emt 0:00:11]} Qb6 {[%emt 0:01:03]} 51. Kg2 {[%emt 0:01:15]} Qe3 {[%emt 0:00:26]} 52. Qd2 {[%emt 0:00:01]} Qe4+ {[%emt 0:02:40]} 53. Kf2 {[%emt 0:00:05]} Rc8 {[%emt 0:00:40]} 54. Qe3 {[%emt 0:00:23]} Rc2+ {[%emt 0:00:54]} 55. Rd2 {[%emt 0:00:00]} Rxd2+ {[%emt 0:00:32]} 56. Qxd2 {[%emt 0:00:01]} Qd4+ {[%emt 0:00:23]} 57. Kf3 {[%emt 0:00:42]} Qd5+ {[%emt 0:00:28]} 58. Ke3 {[%emt 0:00:01]} Qxb3 {[%emt 0:00:36]} 59. Qxd3 {[%emt 0:00:02]} Qb6+ {[%emt 0:01:19]} 60. Qd4 {[%emt 0:00:40]} Qe6+ {[%emt 0:00:57]} 61. Kd2 {[%emt 0:00:29]} Qa2+ {[%emt 0:01:01]} 62. Kd3 {[%emt 0:00:17]} Qb3+ {[%emt 0:00:22]} 63. Ke4 {[%emt 0:00:16]} Qc2+ {[%emt 0:00:39]} 64. Ke5 {[%emt 0:00:25]} Qf5+ {[%emt 0:00:30]} 65. Kd6 {[%emt 0:00:01]} Qe6+ {[%emt 0:00:13]} 66. Kc7 {[%emt 0:00:44]} Qg4 {[%emt 0:01:11]} 67. Qd8+ {[%emt 0:01:29]} Kg7 {[%emt 0:00:06]} 68. Qf6+ {[%emt 0:00:03]} Kg8 {[%emt 0:00:43]} 69. Qd8+ {[%emt 0:00:47] Qe6} 1/2-1/2